[Event "2nd Serbia Open Masters 2022"]
[Site "Novi Sad"]
[Date "2022.07.01"]
[Round "4.7"]
[White "Samant Aditya S"]
[Black "Bernadskiy, Vitaliy"]
[Result "1/2-1/2"]
[ECO "C90"]
[WhiteElo "2433"]
[BlackElo "2636"]
[Annotator "TA"]
[PlyCount "80"]
[EventDate "2022.06.28"]
[EventType "swiss"]
[EventCountry "SRB"]
[SourceTitle "playchess.com"]
[Source "ChessBase"]
[SourceQuality "1"]
[TimeControl "40/5400+30:900+30"]

{[%evp 20,80,27,27,26,22,27,19,13,12,25,18,21,22,30,25,47,20,133,132,128,127,118,129,127,121,122,110,128,104,101,76,86,48,44,47,41,46,53,44,58,0,0,0,0,0,0,0,0,0,0,0,0,0,0,0,6,6,8,0,0,0,0]} 1. e4 {[%emt 0:00:03]} e5 {[%emt 0:05:33]} 2. Nf3 {[%emt 0:00:06]} Nc6 {[%emt 0:00:02]} 3. Bb5 {[%emt 0:00:07][%cal Bf1b5,Bb5a4,Ba4b3][%mdl 32]} a6 {[%emt 0:00:03]} 4. Ba4 {[%emt 0:00:05]} Nf6 {[%emt 0:00:06]} 5. O-O {[%emt 0:00:06]} Be7 {[%emt 0:00:13]} 6. Re1 {[%emt 0:00:13]} b5 {[%emt 0:00:12]} 7. Bb3 {[%emt 0:00:09]} d6 {[%emt 0:00:19]} 8. c3 {[%emt 0:00:13]} Na5 {[%emt 0:00:59]} 9. Bc2 {[%emt 0:05:38]} c5 {[%emt 0:00:37]} 10. d4 {[%emt 0:01:53]} cxd4 {[%emt 0:00:16]} 11. cxd4 {[%emt 0:00:13]} Bg4 {[%emt 0:00:03] now supersedes 11...Qc7. C90: Closed Ruy Lopez with 7...d6: Early deviations.} 12. dxe5 {[%emt 0:11:15]} Bxf3 {[%emt 0:00:07][%mdl 64] Remove Defender} 13. Qxf3 {[%emt 0:00:16]} dxe5 {[%emt 0:00:04]} 14. Nc3 {[%emt 0:04:14]} O-O {[%emt 0:00:41]} 15. Bg5 {[%emt 0:08:58]} Nc6 {[%emt 0:03:33]} 16. Rad1 $36 {[%emt 0:07:45][%mdl 2048] White has good play.} Nd4 {[%emt 0:01:34]} 17. Qg3 {[%emt 0:00:45] [#]} b4 $146 {[%emt 0:34:22]} ({Predecessor:} 17... Kh8 18. Qxe5 Nc6 19. Qf4 Qe8 20. e5 Nh5 21. Qh4 Bxg5 22. Qxg5 g6 23. g4 Ng7 24. Nd5 Qe6 25. Nc7 Qc4 26. Bb3 Qc5 27. Nxa8 Qa7 28. Rd6 Qxa8 29. Bd5 {1-0 (29) Hicdoenmez,H-Moreira,R LSS email 2006}) 18. Qxe5 {[%emt 0:36:57]} bxc3 {[%emt 0:00:04]} (18... Nxc2 $11 19. Rxd8 Bxd8) 19. Rxd4 $16 {[%emt 0:03:56]} Qb6 {[%emt 0:00:04][%cal Of6g4] Hoping for ...Ng4!} 20. bxc3 {[%emt 0:00:57]} ({Stronger than} 20. Qxe7 Qxd4 21. Be3 Qc4 $15) 20... Bc5 {[%emt 0:00:03] [#]} 21. Qf5 $1 {[%emt 0:09:08]} Bxd4 {[%emt 0:21:48]} 22. cxd4 {[%emt 0:00:02] And now e5 would win.} h6 {[%emt 0:00:36] [#]} 23. Be3 {[%emt 0:01:55] Black must now prevent e5.} Qe6 {[%emt 0:00:08] [#]} 24. Qxe6 {[%emt 0:00:42]} fxe6 {[%emt 0:00:04]} 25. f3 {[%emt 0:00:05]} a5 {[%emt 0:01:24]} 26. Bb3 {[%emt 0:01:19]} Kf7 {[%emt 0:00:13]} 27. Rc1 {[%emt 0:00:55] aiming for Rc7+.} Rfc8 {[%emt 0:00:55] Against Rc7+} 28. Rxc8 {[%emt 0:00:06]} Rxc8 $14 {[%emt 0:00:02][%mdl 4096] Endgame KRN-KB} 29. Kf2 $1 {[%emt 0:00:26]} Rb8 {[%emt 0:04:54][%cal Oa5a4]} 30. Ke2 {[%emt 0:01:06]} (30. Bc1 $14) 30... a4 $1 $11 {[%emt 0:00:10] The position is equal.} 31. Bxa4 {[%emt 0:00:05]} Rb2+ {[%emt 0:00:05]} 32. Bd2 {[%emt 0:00:05] Threatens to win with Bb3.} Rxa2 {[%emt 0:00:02]} 33. Bb3 {[%emt 0:00:33]} Ra3 {[%emt 0:00:16]} 34. Bc2 {[%emt 0:00:28]} g5 {[%emt 0:00:47]} 35. Bd3 {[%emt 0:01:42]} Ra1 {[%emt 0:01:02]} 36. Be1 {[%emt 0:02:37]} Ng8 {[%emt 0:01:21]} 37. h4 {[%emt 0:02:16]} Ne7 {[%emt 0:00:29]} 38. hxg5 {[%emt 0:00:11]} hxg5 {[%emt 0:00:16]} 39. Bd2 {[%emt 0:00:06]} Nc6 {[%emt 0:02:22]} 40. d5 {[%emt 0:00:00]} exd5 {[%emt 0:03:32] Weighted Error Value: White=0.05 (flawless) /Black=0.07 (flawless)} 1/2-1/2

[Event "2nd Serbia Open Masters 2022"]
[Site "Novi Sad"]
[Date "2022.07.01"]
[Round "4.8"]
[White "Assaubayeva, Bibisara"]
[Black "Aryan Chopra"]
[Result "0-1"]
[ECO "E71"]
[WhiteElo "2439"]
[BlackElo "2609"]
[Annotator "TA"]
[PlyCount "52"]
[EventDate "2022.06.28"]
[EventType "swiss"]
[EventCountry "SRB"]
[SourceTitle "playchess.com"]
[Source "ChessBase"]
[SourceQuality "1"]
[TimeControl "40/5400+30:900+30"]

{[%evp 10,52,49,21,35,42,46,31,34,-42,-52,-49,-27,-85,-60,-143,-141,-145,-47,-50,-72,-71,-83,-70,-65,-211,-211,-229,-214,-398,-385,-392,-396,-411,-408,-403,-395,-380,-387,-505,-468,-699,-692,-644,-625]} 1. d4 {[%emt 0:00:02]} Nf6 {[%emt 0:00:04]} 2. c4 {[%emt 0:00:07]} g6 {[%emt 0:00:06]} 3. Nc3 {[%emt 0:00:07]} Bg7 {[%emt 0:00:05]} 4. e4 {[%emt 0:00:08]} d6 {[%emt 0:00:03]} 5. h3 {[%emt 0:00:09]} O-O {[%emt 0:00:06]} 6. Be3 {[%emt 0:00:09]} a5 {[%emt 0:00:35] E71: King's Indian: 4 e4 d6 5 h3.} 7. g4 {[%emt 0:05:41] [#]} a4 $146 {[%emt 0:00:04][%cal Oc7c5]} ({Predecessor:} 7... Na6 8. Nge2 c5 9. Bg2 cxd4 10. Nxd4 Nc5 11. O-O Ne6 12. f4 Qb6 13. Nf5 Qxb2 14. Na4 {1-0 (22) Belous,V (2525)-Bragg,D (2050) Redmond 2022}) 8. Nge2 {[%emt 0:05:54]} c5 {[%emt 0:01:33] White is slightly better.} 9. g5 {[%emt 0:17:32]} (9. d5 $14) 9... Nfd7 $15 {[%emt 0:11:03]} 10. Rc1 {[%emt 0:10:58]} Nc6 {[%emt 0:15:09]} 11. d5 {[%emt 0:04:17]} (11. Bg2 $1 $11 {keeps the balance.}) 11... Nde5 $1 $17 {[%emt 0:06:16][%cal Re5f3]} 12. Ng1 {[%emt 0:04:46] Prevents Nf3+.} (12. Ng3 $1 $15 Nd4 13. Be2 (13. Bxd4 $2 cxd4 14. Nb1 Qb6 $19)) 12... Na5 $1 {[%emt 0:17:31]} 13. Nb5 {[%emt 0:08:26]} e6 {[%emt 0:13:48]} (13... Bd7 $17 {[%cal Oa5c4] Strongly threatening ...Naxc4!} 14. b3 axb3 15. axb3 f5 16. exf5 (16. f4 $2 fxe4 17. Rh2 Nf7 $19) 16... Rxf5) 14. f4 $15 {[%emt 0:04:44] [#]} (14. Qxa4 $2 Bd7 15. Qc2 Naxc4 $1 {[%mdl 512]} 16. Bxc4 Bxb5 17. Bxb5 Qa5+ 18. Kf1 Qxb5+ 19. Qe2 Qb4 $19) 14... Nexc4 {[%emt 0:06:13]} 15. Rxc4 {[%emt 0:00:34]} (15. Bxc4 $2 Nxc4 16. Rxc4 Qa5+ 17. Kf2 (17. Nc3 $2 b5 $19) 17... Qxb5 $19) 15... Nxc4 {[%emt 0:01:05]} 16. Bxc4 {[%emt 0:00:02]} exd5 $1 {[%emt 0:00:08]} ({Much worse is} 16... Bxb2 17. Rh2 a3 18. Qd3 $11) 17. exd5 {[%emt 0:01:42] [#] This costs White the game.} (17. Qxd5 $15 Be6 18. Qd3) 17... Bd7 $1 $19 {[%emt 0:04:35] aiming for ...Bxb5.} ({Weaker is} 17... Bxb2 18. Rh2 Bg7 19. Bd2 $17) 18. Qd3 {[%emt 0:34:12]} ({But not} 18. Nxd6 $2 Qe7 19. Kf2 Qxd6 $19) 18... Ra5 {[%emt 0:03:21][%mdl 1024] ...Qb6 is the strong threat. Black has strong compensation.} 19. Kf1 $2 {[%emt 0:00:00]} (19. Nxd6 Qe7 20. Nxb7) 19... Qb6 {[%emt 0:01:14]} 20. Na3 {[%emt 0:00:00]} Qxb2 {[%emt 0:00:15]} 21. Bd2 {[%emt 0:00:00] [#]} b5 $1 {[%emt 0:06:40]} 22. Bxa5 {[%emt 0:00:00][%cal Ra3b5]} bxc4 {[%emt 0:00:05] Really sharp!} 23. Nxc4 {[%emt 0:00:00]} Qc1+ {[%emt 0:00:06]} 24. Kf2 {[%emt 0:00:00]} Bb5 {[%emt 0:00:38] A strong pair of Bishops. Black is clearly winning.} 25. Qd2 {[%emt 0:00:00]} (25. Bd2 $142 Qxc4 26. Qxc4 Bxc4 27. Ne2) 25... Qxc4 {[%emt 0:00:36]} 26. Nf3 {[%emt 0:00:00]} Re8 {[%emt 0:00:46] Weighted Error Value: White=0.59/Black=0.04 (flawless)} 0-1

[Event "2nd Serbia Open Masters 2022"]
[Site "Novi Sad"]
[Date "2022.07.01"]
[Round "4.9"]
[White "Puranik, Abhimanyu"]
[Black "Samadov, Read"]
[Result "1/2-1/2"]
[ECO "B94"]
[WhiteElo "2608"]
[BlackElo "2442"]
[Annotator "TA"]
[PlyCount "110"]
[EventDate "2022.06.28"]
[EventType "swiss"]
[EventCountry "SRB"]
[SourceTitle "playchess.com"]
[Source "ChessBase"]
[SourceQuality "1"]
[TimeControl "40/5400+30:900+30"]

{[%evp 11,110,26,16,29,22,14,33,22,29,20,24,20,41,15,32,25,41,58,58,45,55,34,66,73,75,70,102,0,0,0,0,0,44,56,44,15,21,52,62,69,192,176,181,181,171,0,236,9,47,40,104,112,105,106,107,8,116,112,106,108,323,321,233,103,103,19,19,19,19,19,19,8,8,8,8,8,8,8,8,8,8,0,8,8,8,8,8,8,8,8,8,8,8,8,8,8,8,8,8,8,8]} 1. e4 {[%emt 0:02:59]} c5 {[%emt 0:00:06]} 2. Nf3 {[%emt 0:00:04]} d6 {[%emt 0:00:09]} 3. d4 {[%emt 0:00:07]} cxd4 {[%emt 0:00:10]} 4. Nxd4 {[%emt 0:00:03]} Nf6 {[%emt 0:00:06]} 5. Nc3 {[%emt 0:00:04]} a6 {[%emt 0:00:06]} 6. Bg5 {[%emt 0:00:07]} Nbd7 {[%emt 0:00:19]} 7. Qe2 {[%emt 0:00:39] B94: Sicilian Najdorf: 6 Bg5 Nbd7.} h6 {[%emt 0:00:43]} 8. Bh4 {[%emt 0:00:20]} g6 {[%emt 0:00:23]} 9. f4 {[%emt 0:00:58] White is slightly better.} e5 {[%emt 0:00:31]} 10. fxe5 {[%emt 0:01:39]} dxe5 {[%emt 0:00:08]} 11. Nb3 {[%emt 0:00:10]} b5 {[%emt 0:25:12]} 12. O-O-O {[%emt 0:04:18]} Qc7 {[%emt 0:00:16]} 13. g4 {[%emt 0:12:53]} Bg7 {[%emt 0:10:50] [#]} 14. Bg2 $146 {[%emt 0:02:44]} ({Predecessor:} 14. Nd5 Nxd5 15. exd5 Qd6 16. Bg2 O-O 17. Bg3 Nb6 18. h4 a5 19. Bf2 Na4 20. g5 {1-0 (34) Bernadskiy,V (2543)-Harsha,B (2404) Kavala 2017}) 14... O-O {[%emt 0:02:39]} 15. g5 {[%emt 0:01:11]} hxg5 {[%emt 0:00:58]} 16. Bxg5 {[%emt 0:00:03]} Nb6 {[%emt 0:07:43]} 17. Bxf6 {[%emt 0:02:53]} Bxf6 {[%emt 0:00:12]} 18. h4 $1 {[%emt 0:00:04]} Be6 {[%emt 0:09:34]} 19. Nd5 {[%emt 0:03:47]} (19. Qf2 $16 b4 20. Nd5 Nxd5 21. exd5) 19... Bxd5 $11 {[%emt 0:01:40]} 20. exd5 {[%emt 0:00:03] Be4 is the strong threat.} e4 {[%emt 0:10:54] Strongly threatening ...Na4.} 21. d6 {[%emt 0:10:00]} Qc4 {[%emt 0:05:54]} (21... Bxb2+ $5 22. Kxb2 Na4+ 23. Kc1 Qc3 24. Bxe4 (24. Qxe4 Qb2+ 25. Kd2 Qc3+ 26. Kc1 Qb2+ 27. Kd2 Qc3+ 28. Kc1 $11) 24... Qb2+ 25. Kd2 Qc3+ 26. Kc1 Qb2+ 27. Kd2 Qc3+ 28. Kc1 $11) 22. Qxe4 {[%emt 0:13:14]} Rad8 {[%emt 0:01:50]} 23. Qf3 {[%emt 0:10:40]} Be5 {[%emt 0:02:02]} (23... Rc8 $2 24. c3 Be5 25. h5 Qf4+ 26. Kb1 (26. Qxf4 Bxf4+ 27. Kb1 Rcd8 $18) 26... Qxf3 27. Bxf3 $18) 24. Kb1 {[%emt 0:05:04] Black must now prevent h5.} Na4 {[%emt 0:03:26]} (24... Rc8 $2 25. Qf2 $18) 25. c3 {[%emt 0:02:28]} b4 {[%emt 0:03:01]} (25... Rxd6 $14 26. Rxd6 Bxd6) 26. Na5 $1 $18 {[%emt 0:04:32]} Qe6 {[%emt 0:02:47][%cal Rb4c3]} 27. Bh3 $1 {[%emt 0:04:59]} (27. cxb4 Nxb2 28. Bh3 f5 $11) 27... f5 {[%emt 0:01:29][%cal Rb4c3]} 28. Nb7 $2 {[%emt 0:02:45] Active counter play!} (28. Bf1 $1 $18 {[%cal Rf1c4]} Nxb2 29. Kxb2 bxc3+ 30. Kc1) 28... Rd7 $2 {[%emt 0:05:38]} (28... Rb8 $1 $11 29. Bg2 (29. d7 Nxc3+ 30. bxc3 bxc3 $11) 29... bxc3) 29. cxb4 $2 {[%emt 0:11:38]} (29. Bg2 $1 $18 {Hoping for Qc6.} bxc3 30. Qc6 Rxb7 31. Qxb7) 29... Rb8 {[%emt 0:02:23]} (29... Bxb2 $5 {[%cal Ra4c3]} 30. Rhe1 (30. Nc5 Nxc5 31. bxc5 Rb8 $17) 30... Qc4 $11) 30. Rhg1 {[%emt 0:01:33]} (30. Nc5 $2 Nxc5 31. a3 Na4 $19) 30... Kf8 {[%emt 0:01:18]} (30... Rdxb7 $2 31. Bxf5 Nc3+ 32. bxc3 $18) (30... Bg7 $14 31. Bg2 Nxb2) 31. Qd5 $16 {[%emt 0:01:24]} ({But not} 31. Nc5 $2 Nxc5 32. Rdf1 Rf7 $1 $19) 31... Qxd5 {[%emt 0:02:33]} 32. Rxd5 {[%emt 0:00:01]} Bxb2 {[%emt 0:00:40]} 33. Ra5 {[%emt 0:02:57]} ({Resist} 33. Nc5 Nxc5 34. Kxb2 (34. Rxg6 $2 Rxb4 35. Bxf5 Rg7 $17) 34... Rxb4+ 35. Ka1 Rb5) (33. Rxg6 $16 Rdxb7 34. Rxf5+ Rf7 35. d7 Rxf5 36. Bxf5) 33... Bd4 {[%emt 0:00:46] [#]} (33... Rdxb7 $11 34. Rxa4 Rxb4 35. Rxb4 Rxb4 36. Rxg6 Be5+ 37. Kc1 Rc4+ 38. Kd2 Rd4+ 39. Ke3 Re4+ 40. Kf2 Rxh4) 34. Rxg6 $1 {[%emt 0:00:08]} Nc3+ {[%emt 0:00:07]} 35. Kc2 {[%emt 0:00:04]} Rbxb7 $2 {[%emt 0:00:16]} (35... Rdxb7 $16 36. Kd3 Bg7) 36. Rxf5+ $18 {[%emt 0:01:18]} Rf7 {[%emt 0:00:04] [#]} 37. Kd3 {[%emt 0:00:35] Dancing on a razor blade.} ({Less strong is} 37. Rxf7+ Kxf7 38. h5 Bf6 $16) (37. h5 $1 $18 {has better winning chances. aiming for Rxf7+.} Nb5 38. Rxf7+ Rxf7 39. d7) 37... Bg7 $16 {[%emt 0:01:27] [#]} (37... Rxb4 38. d7 Rb8 39. Kxd4 Rxf5 40. Bxf5 Nb5+ 41. Ke5 $18) 38. Rxg7 {[%emt 0:00:26]} Kxg7 $11 {[%emt 0:00:13] The position is equal.} 39. Kxc3 {[%emt 0:00:08]} Rxf5 {[%emt 0:00:32]} 40. Bxf5 $16 {[%emt 0:00:00][%mdl 4096] Endgame Threatens to win with Bc8. KR-KB} Kf6 {[%emt 0:00:00]} 41. d7 {[%emt 0:05:15]} Ke7 {[%emt 0:01:29]} 42. a4 {[%emt 0:02:35]} Rb6 {[%emt 0:01:40]} 43. h5 {[%emt 0:01:13]} Rf6 {[%emt 0:01:08]} 44. Bg4 {[%emt 0:00:42]} Rf4 {[%emt 0:01:42]} 45. Be2 {[%emt 0:00:27]} Rf6 {[%emt 0:00:34]} 46. b5 {[%emt 0:03:05]} axb5 {[%emt 0:04:49]} 47. Bxb5 {[%emt 0:00:08]} Rh6 {[%emt 0:00:11]} 48. Kb4 {[%emt 0:01:35]} Rxh5 {[%emt 0:00:17]} 49. Bc6 {[%emt 0:00:05]} Kd8 {[%emt 0:01:08]} 50. a5 {[%emt 0:00:06][%cal Ba4a5,Ba5a6][%mdl 32]} Kc7 {[%emt 0:00:21] [#]} 51. a6 $1 {[%emt 0:00:14]} Rh8 {[%emt 0:00:33]} (51... Rh4+ 52. Kc5) 52. Kc5 {[%emt 0:00:31]} Rh5+ {[%emt 0:02:11]} 53. Kc4 {[%emt 0:00:59]} Ra5 {[%emt 0:00:16]} 54. Bb5 {[%emt 0:00:04]} Rxa6 {[%emt 0:00:04]} 55. Bxa6 {[%emt 0:00:02] Threatening mate with Bb5.} Kxd7 {[%emt 0:00:03] Weighted Error Value: White=0.20 (precise) /Black=0.21 (precise)} 1/2-1/2

[Event "2nd Serbia Open Masters 2022"]
[Site "Novi Sad"]
[Date "2022.07.01"]
[Round "4.10"]
[White "Kilic, Eray"]
[Black "Kadric, Denis"]
[Result "1/2-1/2"]
[ECO "B11"]
[WhiteElo "2192"]
[BlackElo "2576"]
[Annotator "TA"]
[PlyCount "48"]
[EventDate "2022.06.28"]
[EventType "swiss"]
[EventCountry "SRB"]
[SourceTitle "playchess.com"]
[Source "ChessBase"]
[SourceQuality "1"]
[TimeControl "40/5400+30:900+30"]

{[%evp 12,48,10,0,22,17,63,45,141,16,11,13,29,17,16,-39,-44,-107,-110,-91,0,-43,-44,-56,25,37,77,85,99,64,77,30,33,28,20,19,89,85,157]} 1. e4 {[%emt 0:00:02]} c6 {[%emt 0:09:49]} 2. Nc3 {[%emt 0:01:09]} d5 {[%emt 0:00:05]} 3. Nf3 {[%emt 0:00:04]} Bg4 {[%emt 0:00:33]} 4. h3 {[%emt 0:00:15]} Bxf3 {[%emt 0:00:03]} 5. Qxf3 {[%emt 0:00:04]} e6 {[%emt 0:00:14]} 6. d4 {[%emt 0:01:16]} Nf6 {[%emt 0:01:47]} 7. Bg5 {[%emt 0:10:59]} Be7 {[%emt 0:00:45] B11: Caro-Kann: Two Knights Variation.} 8. O-O-O {[%emt 0:01:24]} O-O {[%emt 0:05:37]} (8... Nxe4 $11 9. Bxe7 (9. Nxe4 Bxg5+ 10. Nxg5 Qxg5+ 11. Kb1 O-O $17) 9... Qxe7 10. Nxe4 dxe4 11. Qxe4 Nd7) 9. Bd3 {[%emt 0:06:48] [#]} b5 $146 {[%emt 0:02:37]} (9... h6 $14 10. Bf4 dxe4 11. Nxe4 Nbd7) ({Predecessor:} 9... Re8 10. h4 Na6 11. e5 Nd7 12. Qg3 Nb4 13. Bh6 Nxd3+ 14. Rxd3 g6 15. h5 c5 16. hxg6 fxg6 {0-1 (37) Gonzalez Trelles,V-Gonzalez de Lena,A Asturias 1999}) 10. exd5 {[%emt 0:06:27] White is more active.} (10. e5 $16) 10... cxd5 $11 {[%emt 0:00:21]} 11. Bxb5 {[%emt 0:06:05]} Qa5 {[%emt 0:06:05]} 12. Bxf6 {[%emt 0:12:09]} Bxf6 {[%emt 0:00:01]} 13. Qd3 {[%emt 0:00:08]} (13. Rd3 $11) 13... Rc8 $15 {[%emt 0:02:16][%mdl 1024] Black has compensation.} 14. Rhe1 {[%emt 0:11:46] [#]} (14. f4 $15) 14... a6 $1 $17 {[%emt 0:01:55]} 15. Ba4 {[%emt 0:00:06]} Ra7 {[%emt 0:00:05]} (15... Rc4 $17 16. Be8 Rxd4) 16. f4 {[%emt 0:06:06]} Rac7 {[%emt 0:08:15][%cal Rc7c3] ...Rxc3 is the strong threat.} 17. Bb3 {[%emt 0:00:12]} Nc6 {[%emt 0:02:50]} ({Black should try} 17... Rxc3 $15 18. bxc3 Rxc3) 18. Qe3 $11 {[%emt 0:00:27]} h6 {[%emt 0:02:27]} 19. Kb1 {[%emt 0:04:00][%cal Of4f5]} Qb4 {[%emt 0:04:33][%cal Rc6d4]} 20. Ne2 {[%emt 0:03:48]} ({Of course not} 20. a3 $6 Qb7 $11) 20... Na5 {[%emt 0:00:06]} 21. c3 {[%emt 0:02:31]} ({Better is} 21. f5 $16) 21... Qb6 {[%emt 0:00:01]} 22. Nc1 {[%emt 0:00:21]} Rb8 {[%emt 0:00:05]} 23. Re2 {[%emt 0:01:54]} Rcb7 {[%emt 0:00:34]} (23... Nc4 $11 24. Qf3 Nd6) 24. Qf3 {[%emt 0:00:58]} Be7 {[%emt 0:13:46] Weighted Error Value: White=0.29 (precise) /Black=0.31} ({Black should play} 24... Qb5) 1/2-1/2

[Event "2nd Serbia Open Masters 2022"]
[Site "Novi Sad"]
[Date "2022.07.01"]
[Round "4.11"]
[White "Harikrishnan.A.Ra"]
[Black "Harsha Bharathakoti"]
[Result "1/2-1/2"]
[ECO "A46"]
[WhiteElo "2396"]
[BlackElo "2547"]
[Annotator "TA"]
[PlyCount "106"]
[EventDate "2022.06.28"]
[EventType "swiss"]
[EventCountry "SRB"]
[SourceTitle "playchess.com"]
[Source "ChessBase"]
[SourceQuality "1"]
[TimeControl "40/5400+30:900+30"]

{[%evp 9,106,18,26,-20,-14,-21,-20,-46,-31,-35,-20,-35,-13,-14,-2,-12,0,-10,0,-24,-29,-24,-19,-22,-22,-32,0,-9,0,-44,-44,-44,-42,-39,-37,-35,-35,-27,-29,-33,-26,-37,-37,-39,-31,-54,-33,-46,0,-52,-36,-47,-38,-38,-37,-42,-27,-29,-24,-24,-24,-25,-24,-31,-24,-25,-24,-24,-24,-28,-17,-32,-38,-35,-1,-7,-1,-5,0,-8,-1,-1,0,0,0,0,0,0,0,-4,-8,-16,0,0,0,0,0,0,0]} 1. d4 {[%emt 0:01:11]} Nf6 {[%emt 0:00:33]} 2. Nf3 {[%emt 0:00:25]} c5 {[%emt 0:03:10]} 3. c3 {[%emt 0:02:50]} e6 {[%emt 0:02:14]} 4. Bf4 {[%emt 0:01:11]} cxd4 {[%emt 0:06:58]} 5. cxd4 {[%emt 0:00:27]} Qb6 {[%emt 0:00:32]} 6. Qb3 {[%emt 0:04:25] A46: 1 d4 Nf6 2 Nf3 e6: Torre, London and Colle Systems.} (6. Nc3 {feels stronger.}) 6... Qxb3 $11 {[%emt 0:18:20]} 7. axb3 {[%emt 0:00:05]} Nc6 {[%emt 0:00:02][%cal Bb8c6,Bc6b4,Bb4d5][%mdl 32] [#]} 8. h3 $146 {[%emt 0:07:24]} ({Predecessor:} 8. e3 Bb4+ 9. Nbd2 d5 10. Bd3 Bd7 11. Ke2 Nh5 12. Bg3 Nxg3+ 13. hxg3 Ke7 14. Ne5 Nxe5 15. dxe5 {0-1 (57) Pakleza,Z (2468)-Vorobiov,E (2586) Sitges 2012}) 8... Nb4 {[%emt 0:13:05]} 9. Na3 {[%emt 0:02:16] Prevents Nc2+.} a6 {[%emt 0:01:04]} 10. e3 {[%emt 0:08:05]} Nbd5 {[%emt 0:06:12]} 11. Bh2 {[%emt 0:01:29]} Bb4+ {[%emt 0:00:03]} 12. Ke2 {[%emt 0:02:11]} b6 {[%emt 0:01:07]} 13. Nc2 {[%emt 0:03:13]} Be7 {[%emt 0:06:32]} 14. Nd2 {[%emt 0:02:22]} Bb7 {[%emt 0:01:58]} 15. Kd1 {[%emt 0:07:31]} g5 {[%emt 0:03:58]} 16. Bd3 {[%emt 0:05:29]} b5 {[%emt 0:00:15] Inhibits Nc4.} 17. Ke2 {[%emt 0:02:14][%cal Oh3h4]} d6 {[%emt 0:05:15]} 18. f3 {[%emt 0:15:05]} Kd7 {[%emt 0:05:07]} 19. g4 {[%emt 0:02:33]} h5 {[%emt 0:01:56] ...hxg4 is the strong threat.} 20. Bg3 {[%emt 0:02:59]} Ne8 {[%emt 0:03:07]} 21. Bf2 {[%emt 0:06:27]} Nec7 {[%emt 0:04:14]} 22. Rag1 {[%emt 0:02:41]} Rh6 {[%emt 0:01:38]} 23. Ne4 {[%emt 0:06:42]} Ne8 {[%emt 0:04:20]} 24. Ng3 {[%emt 0:05:30]} Nef6 {[%emt 0:00:36]} 25. Ra1 {[%emt 0:01:57]} Rah8 {[%emt 0:03:34]} 26. Rhg1 {[%emt 0:00:01]} Bd8 {[%emt 0:01:20]} 27. Rac1 {[%emt 0:01:00]} Rg8 {[%emt 0:02:58]} 28. Ra1 {[%emt 0:00:17]} Rgh8 {[%emt 0:00:26]} 29. Rac1 {[%emt 0:00:06]} Ne7 {[%emt 0:01:02]} 30. Ra1 {[%emt 0:01:48]} hxg4 {[%emt 0:02:54]} 31. hxg4 {[%emt 0:00:10]} Nfd5 {[%emt 0:00:51] Prevents Nb4.} (31... Nc6 {with more complications.} 32. e4 Rh2 33. Rh1 Bb6) 32. Rh1 $1 {[%emt 0:01:32]} Rxh1 {[%emt 0:00:14]} 33. Rxh1 {[%emt 0:00:07]} Rxh1 {[%emt 0:00:02]} 34. Nxh1 {[%emt 0:00:01]} f5 {[%emt 0:00:19]} 35. gxf5 {[%emt 0:01:04]} exf5 {[%emt 0:00:03]} 36. Ng3 {[%emt 0:00:18]} Ke6 {[%emt 0:00:07]} 37. Nh5 {[%emt 0:00:36]} Kf7 {[%emt 0:00:52]} 38. Be1 {[%emt 0:02:08]} Bc8 {[%emt 0:01:59]} 39. Bd2 {[%emt 0:01:25]} Ng6 {[%emt 0:00:26]} 40. Nb4 {[%emt 0:00:00]} Nxb4 {[%emt 0:00:00]} 41. Bxb4 {[%emt 0:02:04]} d5 {[%emt 0:06:12]} 42. Bd6 {[%emt 0:01:40] The position is equal.} Nh4 {[%emt 0:00:14]} 43. Kf2 {[%emt 0:01:24]} Be6 {[%emt 0:00:54]} 44. Ke2 {[%emt 0:01:02]} Kg6 {[%emt 0:00:49]} 45. Ng3 {[%emt 0:00:03]} Bf6 {[%emt 0:00:11]} 46. Bc5 {[%emt 0:04:53]} Kh6 {[%emt 0:00:17]} 47. Bf8+ {[%emt 0:00:14]} Kg6 {[%emt 0:00:09]} 48. Bd6 {[%emt 0:00:17]} Kf7 {[%emt 0:02:22]} 49. Nh5 {[%emt 0:00:13]} Bd8 {[%emt 0:01:09]} 50. Kf2 {[%emt 0:01:06]} Kg6 {[%emt 0:01:06]} 51. Ng3 {[%emt 0:00:28]} Bf6 {[%emt 0:00:03]} 52. Ke2 {[%emt 0:00:29]} Bg7 {[%emt 0:00:30]} 53. Be7 {[%emt 0:01:23]} Bf6 {[%emt 0:01:42] Weighted Error Value: White=0.06 (flawless) /Black=0.07 (flawless)} 1/2-1/2

[Event "2nd Serbia Open Masters 2022"]
[Site "Novi Sad"]
[Date "2022.07.01"]
[Round "4.12"]
[White "Perunovic, Milos"]
[Black "Agmanov, Zhandos"]
[Result "1/2-1/2"]
[ECO "C50"]
[WhiteElo "2544"]
[BlackElo "2420"]
[Annotator "TA"]
[PlyCount "37"]
[EventDate "2022.06.28"]
[EventType "swiss"]
[EventCountry "SRB"]
[SourceTitle "playchess.com"]
[Source "ChessBase"]
[SourceQuality "1"]
[TimeControl "40/5400+30:900+30"]

{[%evp 9,37,0,34,12,21,14,17,8,31,-2,31,5,21,-46,-15,-17,13,4,14,6,0,0,29,31,27,31,57,60,45,28]} 1. e4 {[%emt 0:00:08]} e5 {[%emt 0:00:53]} 2. Nf3 {[%emt 0:00:18]} Nc6 {[%emt 0:00:05]} 3. Bc4 {[%emt 0:01:41]} Bc5 {[%emt 0:01:15]} 4. d3 {[%emt 0:00:24]} Nf6 {[%emt 0:01:01]} 5. Bg5 {[%emt 0:00:27]} Be7 {[%emt 0:02:00][%cal Bc5e7,Be7f6,Bf6g5,Bg5h6][%mdl 32]} (5... h6 $5 {[%cal Rh6g5]} 6. Be3 Bb6 $11) 6. Nc3 {[%emt 0:00:43] C50: Hungarian Defence and Giuoco Pianissimo.} d6 {[%emt 0:00:55]} 7. Bxf6 {[%emt 0:06:56]} Bxf6 {[%emt 0:00:22] [#]} 8. Nd5 $146 {[%emt 0:00:05] The position is equal.} ({Predecessor:} 8. h3 O-O 9. Qd2 Na5 10. O-O-O Nxc4 11. dxc4 Be6 12. Qd3 Bg5+ 13. Kb1 Qe7 14. Rhe1 {0-1 (53) Tjeerdsma,S (970)-Hogenkamp,J (1223) Rijswijk 2011}) 8... Be6 {[%emt 0:11:17]} 9. Qd2 {[%emt 0:04:19]} Rb8 {[%emt 0:13:24]} 10. Bb3 {[%emt 0:10:56]} Bg4 {[%emt 0:10:10]} 11. O-O-O {[%emt 0:17:11]} (11. Qe3 $11) 11... Bxf3 {[%emt 0:08:09]} (11... O-O $5 {[%cal Rc6d4]}) 12. gxf3 {[%emt 0:00:59][%cal Bg2f3,Bf3f4][%mdl 32]} Bg5 {[%emt 0:00:24]} 13. f4 {[%emt 0:00:17]} Bh6 {[%emt 0:01:15]} 14. Qc3 {[%emt 0:01:04]} Nd4 {[%emt 0:14:28] [#] And now ...Ne2+ would win.} 15. Qxc7 {[%emt 0:02:06][%cal Od5f6] Nf6+! is the strong threat.} ({Avoid the trap} 15. Nxc7+ $2 Kd7 16. Kb1 (16. Ba4+ $2 b5 $19) 16... Qxc7 $19) 15... Qxc7 {[%emt 0:03:52]} 16. Nxc7+ {[%emt 0:00:30]} Kd7 {[%emt 0:01:13]} 17. Nd5 {[%emt 0:00:07]} Ne2+ {[%emt 0:00:09]} 18. Kb1 {[%emt 0:01:21]} Nxf4 {[%emt 0:00:03]} 19. d4 {[%emt 0:29:19] Weighted Error Value: White=0.17 (very precise) /Black=0.16 (very precise)} 1/2-1/2